bitfinex/quotes_BTCUSD_20230118
["timestamp","ask_amount","ask_price","bid_price","bid_amount"]
[1674001749581,1.64113192,21152.0,21151.0,0.00944382]
[1674001749845,1.64113192,21152.0,21151.0,0.01744382]
[1674001749846,1.64913192,21152.0,21151.0,0.01744382]
[1674001750133,1.64913192,21152.0,21151.0,0.03093704]
[1674001750647,1.64113192,21152.0,21151.0,0.02293704]
[1674001751708,1.91087331,21152.0,21151.0,0.02293704]
[1674001751968,2.02167331,21152.0,21151.0,0.02293704]
[1674001752220,2.28287331,21152.0,21151.0,0.02293704]
[1674001752493,1.90193192,21152.0,21151.0,0.02293704]
[1674001752754,1.75193192,21152.0,21151.0,0.02293704]
[1674001753061,1.72513192,21152.0,21151.0,0.02393704]
[1674001753543,1.72513192,21152.0,21151.0,0.0249925]
[1674001753792,1.72513192,21152.0,21151.0,0.02393704]
[1674001754051,1.64113192,21152.0,21151.0,0.02293704]
[1674001754277,1.72413192,21152.0,21151.0,0.02393704]
[1674001754520,1.72413192,21152.0,21151.0,0.02293704]
[1674001754803,1.80713192,21152.0,21151.0,0.02393704]
[1674001756831,0.54031392,21152.0,21151.0,0.0249925]
[1674001759109,0.54031392,21152.0,21151.0,0.02393704]
[1674001759376,0.54031392,21152.0,21151.0,0.0249925]
[1674001760145,0.54031392,21152.0,21151.0,0.02393704]
[1674001761897,0.54031392,21152.0,21151.0,0.13493704]
[1674001762147,0.54031392,21152.0,21149.0,0.91161847]
[1674001762396,0.54031392,21152.0,21151.0,0.1118]
[1674001763416,0.53181392,21152.0,21151.0,0.1118]
[1674001763665,0.166,21152.0,21151.0,0.1118]
[1674001763943,0.166,21152.0,21151.0,1.291599]
[1674001764195,0.472744,21154.0,21151.0,1.291599]
[1674001764445,0.084,21152.0,21151.0,1.24558]
[1674001764724,0.36130073,21155.0,21151.0,1.764687]
[1674001764978,0.084,21152.0,21151.0,1.24558]
[1674001765247,0.084,21152.0,21151.0,1.541386]
[1674001765513,0.084,21152.0,21151.0,1.765386]
[1674001765763,0.34803061,21158.0,21151.0,2.1251463]
[1674001766018,0.53875656,21158.0,21154.0,0.1118]
[1674001766242,0.34803061,21158.0,21156.0,0.111]
[1674001766494,0.34803061,21158.0,21156.0,0.1628545]
[1674001766495,0.0085,21157.0,21156.0,0.1628545]
[1674001767257,0.0085,21157.0,21156.0,1.1082125]
[1674001767513,0.0855,21157.0,21156.0,1.1092125]
[1674001768329,0.0855,21157.0,21156.0,1.057358]
[1674001769657,0.077,21157.0,21156.0,1.057358]
[1674001770164,0.077,21157.0,21156.0,1.876385]
[1674001770698,0.077,21157.0,21156.0,2.2361453]
[1674001771006,0.077,21157.0,21156.0,2.547585]
[1674001771249,0.077,21157.0,21156.0,1.876685]
[1674001771509,0.33067708,21161.0,21156.0,1.875685]
[1674001771765,0.007,21157.0,21156.0,1.7374555]
[1674001772014,0.007,21157.0,21156.0,1.8967162]
[1674001772300,0.014,21157.0,21156.0,1.9187162]
[1674001773089,0.33067708,21161.0,21157.0,0.10211639]
[1674001773335,0.33067708,21161.0,21160.0,0.1118]
[1674001773609,0.33917708,21161.0,21160.0,0.407462]
[1674001773873,0.33917708,21161.0,21160.0,1.056978]
[1674001774389,0.00846343,21161.0,21160.0,1.056978]
[1674001774644,0.07746343,21161.0,21160.0,1.577536]
[1674001774905,0.07746343,21161.0,21160.0,1.877536]
[1674001775171,0.07746343,21161.0,21160.0,1.618736]
[1674001775424,0.07746343,21161.0,21160.0,1.318736]
[1674001775942,0.00846343,21161.0,21160.0,1.316736]
[1674001776236,0.01546343,21161.0,21160.0,1.338736]
[1674001776499,0.01546343,21161.0,21160.0,1.316736]
[1674001776754,0.01546343,21161.0,21160.0,1.638736]
[1674001777255,0.00846343,21161.0,21160.0,1.616736]
[1674001779492,0.00846343,21161.0,21160.0,1.638736]
[1674001779493,0.01546343,21161.0,21160.0,1.638736]
[1674001779740,0.00846343,21161.0,21160.0,1.616736]
[1674001779981,0.01546343,21161.0,21160.0,1.638736]
[1674001780479,0.00846343,21161.0,21160.0,1.616736]
[1674001780738,0.01546343,21161.0,21160.0,1.638736]
[1674001780988,0.00846343,21161.0,21160.0,1.616736]
[1674001781246,0.01546343,21161.0,21160.0,1.638736]
[1674001781515,0.00846343,21161.0,21160.0,2.2882863]
[1674001782010,0.00846343,21161.0,21160.0,2.37586864]
[1674001782559,0.01546343,21161.0,21160.0,2.39786864]
[1674001783015,0.00846343,21161.0,21160.0,2.29996864]
[1674001783515,0.01446343,21161.0,21160.0,2.32196864]
[1674001783798,0.00846343,21161.0,21160.0,2.29996864]
[1674001784005,0.01446343,21161.0,21160.0,2.32196864]
[1674001785253,0.01446343,21161.0,21160.0,1.96220834]
[1674001785497,0.01446343,21161.0,21160.0,2.47196864]
[1674001785749,0.00846343,21161.0,21160.0,2.44996864]
[1674001786000,0.00846343,21161.0,21160.0,2.31147864]
[1674001786255,0.01446343,21161.0,21160.0,2.28947864]
[1674001786514,0.02146343,21161.0,21160.0,2.31147864]
[1674001786762,0.00846343,21161.0,21160.0,1.77971834]
[1674001787008,0.01546343,21161.0,21160.0,1.80171834]
[1674001788761,0.00846343,21161.0,21160.0,1.95171834]
[1674001789003,0.01546343,21161.0,21160.0,1.95171834]
[1674001789495,0.01546343,21161.0,21160.0,2.54776864]
[1674001790010,0.01546343,21161.0,21160.0,2.47196864]
[1674001790475,0.01546343,21161.0,21160.0,2.47247706]
[1674001791225,0.01546343,21161.0,21160.0,2.11271676]
[1674001791734,0.01546343,21161.0,21160.0,2.18861676]
[1674001792004,0.01546343,21161.0,21160.0,2.03861676]
[1674001792242,0.01546343,21161.0,21160.0,1.42682676]
[1674001793262,0.0153971,21161.0,21160.0,1.42682676]
[1674001793523,0.0153971,21161.0,21160.0,1.72682676]
[1674001794288,0.0153971,21161.0,21160.0,1.72182676]
[1674001794804,0.0153971,21161.0,21160.0,1.72131834]
[1674001795095,0.0153971,21161.0,21160.0,1.42566034]
[1674001795323,0.0153971,21161.0,21160.0,1.34976034]
[1674001795836,0.0153971,21161.0,21160.0,1.64541834]
[1674001796089,0.0153971,21161.0,21160.0,1.72061834]
[1674001796598,0.0153971,21161.0,21160.0,1.73061834]
[1674001798412,0.0153971,21161.0,21160.0,1.73112676]
[1674001799430,0.0153971,21161.0,21160.0,1.43546876]
[1674001799962,0.0153971,21161.0,21160.0,1.73112676]
[1674001801759,0.0153971,21161.0,21160.0,1.65592676]
[1674001802749,0.0153971,21161.0,21160.0,1.36026876]
[1674001802981,0.0153971,21161.0,21160.0,1.47116876]
[1674001803229,0.01645261,21161.0,21160.0,1.05976034]
[1674001803503,0.0153971,21161.0,21160.0,1.05976034]
[1674001804542,0.0153971,21161.0,21160.0,1.46631834]
[1674001804791,0.0153971,21161.0,21160.0,1.76631834]
[1674001806871,0.0153971,21161.0,21160.0,1.76682676]
[1674001808903,0.0153971,21161.0,21160.0,1.87852676]
[1674001809227,0.0153971,21161.0,21160.0,2.57620605]
[1674001809398,0.0153971,21161.0,21160.0,2.75917635]
[1674001809643,0.0153971,21161.0,21160.0,3.04245008]
[1674001810158,0.00791041,21161.0,21160.0,2.81583109]
[1674001810434,0.00791041,21161.0,21160.0,3.04193322]
[1674001811168,0.00791041,21161.0,21160.0,2.81583109]
[1674001811927,0.00791041,21161.0,21160.0,3.04209477]
[1674001812183,0.00791041,21161.0,21160.0,2.92852347]
[1674001812436,0.00791041,21161.0,21160.0,2.56876317]
[1674001813207,0.00791041,21161.0,21160.0,2.31051795]
[1674001813449,0.00791041,21161.0,21160.0,2.31051423]
[1674001813985,0.00791041,21161.0,21160.0,2.19740358]
[1674001814318,0.00791041,21161.0,21160.0,1.46907979]
[1674001814518,0.00791041,21161.0,21160.0,1.17342179]
[1674001815290,0.00791041,21161.0,21160.0,1.34317528]
[1674001815569,0.00791041,21161.0,21160.0,1.64317528]
[1674001815834,0.00791041,21161.0,21160.0,1.82598946]
[1674001816086,0.00791041,21161.0,21160.0,2.12164746]
[1674001817043,0.00791041,21161.0,21160.0,2.00849443]
[1674001817294,0.00791041,21161.0,21160.0,2.12168665]
[1674001817547,0.00791041,21161.0,21160.0,2.23475811]
[1674001817802,0.00791041,21161.0,21160.0,2.42397835]
[1674001818384,0.00791041,21161.0,21160.0,2.42406501]
[1674001819612,0.00791041,21161.0,21160.0,2.19771467]
[1674001819866,0.00791041,21161.0,21160.0,2.26607269]
[1674001820122,0.00791041,21161.0,21160.0,2.60537211]
[1674001820706,0.00791041,21161.0,21160.0,2.26607269]
[1674001821652,0.00791041,21161.0,21160.0,2.34137269]
[1674001824235,0.00791041,21161.0,21160.0,2.96917051]
[1674001824714,0.00791041,21161.0,21160.0,2.34137269]
[1674001825255,0.00791041,21161.0,21160.0,1.96425942]
[1674001825771,0.00791041,21161.0,21160.0,2.1903697]
[1674001826041,0.00791041,21161.0,21160.0,1.96425942]
[1674001826303,0.00791041,21161.0,21160.0,2.49037358]
[1674001826558,0.00791041,21161.0,21160.0,2.20772655]
[1674001827653,0.00791041,21161.0,21160.0,2.49037358]
[1674001828753,0.00791041,21161.0,21160.0,1.96418938]
[1674001829019,0.00791041,21161.0,21160.0,2.07727274]
[1674001829841,0.00791041,21161.0,21160.0,1.55550058]
[1674001830101,0.00791041,21161.0,21160.0,1.89284168]
[1674001830616,0.00791041,21161.0,21160.0,1.77980058]
[1674001830890,0.00791041,21161.0,21160.0,2.00591474]
[1674001832201,0.00408724,21161.0,21160.0,2.18855942]
[1674001832516,0.00408724,21161.0,21160.0,2.69819971]
[1674001832827,0.00408724,21161.0,21160.0,2.41567269]
[1674001833369,0.00408724,21161.0,21160.0,2.05591239]
[1674001833626,0.00408724,21161.0,21160.0,2.41567269]
[1674001834471,0.00408724,21161.0,21160.0,2.65194269]
[1674001834728,0.00408724,21161.0,21160.0,2.65195269]
[1674001835761,0.00408724,21161.0,21160.0,2.64195269]
[1674001836525,0.00408724,21161.0,21160.0,3.26948102]
[1674001836793,0.00408724,21161.0,21160.0,3.269478]
[1674001837812,0.00408724,21161.0,21160.0,2.93017858]
[1674001838073,0.00408724,21161.0,21160.0,2.93015858]
[1674001838298,0.00408724,21161.0,21160.0,2.64193269]
[1674001839041,0.00408724,21161.0,21160.0,3.26912253]
[1674001839299,0.00408724,21161.0,21160.0,2.64193269]
[1674001839546,0.00408724,21161.0,21160.0,2.9297747]
[1674001839803,0.00408724,21161.0,21160.0,3.26907412]
[1674001841604,0.00408724,21161.0,21160.0,2.96907412]
[1674001841857,0.00408724,21161.0,21160.0,1.83217239]
[1674001842100,0.00408724,21161.0,21160.0,2.11463454]
[1674001842344,0.00408724,21161.0,21160.0,2.19193269]
[1674001842852,0.00408724,21161.0,21160.0,2.34193269]
[1674001843624,0.00408724,21161.0,21160.0,2.64193269]
[1674001845227,0.00408724,21161.0,21160.0,2.13217239]
[1674001846004,0.00408724,21161.0,21160.0,2.41475393]
[1674001846259,0.00408724,21161.0,21160.0,2.41477393]
[1674001846556,0.00408724,21161.0,21160.0,2.13219239]
[1674001847078,0.00408724,21161.0,21160.0,1.89591239]
[1674001847330,0.00408724,21161.0,21160.0,2.13219239]
[1674001848711,0.00408724,21161.0,21160.0,2.02882338]
[1674001848977,0.00408724,21161.0,21160.0,1.39403878]
[1674001849235,0.00408724,21161.0,21160.0,1.39395612]
[1674001849509,0.00408724,21161.0,21160.0,1.50702472]
[1674001849773,0.00408724,21161.0,21160.0,1.32421054]
[1674001850051,0.00408724,21161.0,21160.0,1.39285497]
[1674001850301,0.00408724,21161.0,21160.0,1.50590971]
[1674001850554,0.00408724,21161.0,21160.0,1.50587677]
[1674001851095,0.3933,21166.0,21160.0,2.03194863]
[1674001851351,0.3933,21166.0,21162.0,0.11303186]
[1674001851625,0.3933,21166.0,21163.0,1.713163]
[1674001851873,0.0752,21168.0,21163.0,1.417554]
[1674001852187,0.0085,21167.0,21163.0,1.417554]
[1674001852458,0.006,21166.0,21164.0,0.11805836]
[1674001852720,0.0085,21167.0,21165.0,0.472478]
[1674001853295,0.01555551,21167.0,21165.0,0.472478]
[1674001853560,0.0085,21167.0,21165.0,0.472478]
[1674001854620,0.0405,21167.0,21165.0,0.475478]
[1674001856756,0.0405,21167.0,21166.0,0.09865225]
[1674001857023,0.0405,21167.0,21166.0,1.33912425]
[1674001857024,0.032,21167.0,21166.0,1.33912425]
[1674001857286,0.032,21167.0,21166.0,1.33911925]
[1674001857559,0.032,21167.0,21166.0,1.34356225]
[1674001857835,0.33775119,21169.0,21166.0,1.63911925]
[1674001858109,0.33775119,21169.0,21167.0,0.3]
[1674001858379,0.40097087,21170.0,21168.0,0.944822]
[1674001858637,0.01067087,21170.0,21168.0,0.944822]
[1674001859416,0.063,21169.0,21168.0,0.944822]
[1674001859722,0.063,21169.0,21168.0,0.99579461]
[1674001861066,0.01667087,21170.0,21168.0,0.99579461]
[1674001861319,0.01067087,21170.0,21169.0,0.595508]
[1674001861584,0.01567087,21170.0,21169.0,0.595508]
[1674001861855,0.01567087,21170.0,21169.0,1.244776]
[1674001862156,0.01067087,21170.0,21169.0,1.244776]
[1674001862461,0.01567087,21170.0,21169.0,1.271776]
[1674001863271,0.01567087,21170.0,21169.0,1.39925782]
[1674001863524,0.01567087,21170.0,21169.0,1.69476482]
[1674001865881,0.01567087,21170.0,21169.0,1.39925782]
[1674001866151,0.01567087,21170.0,21169.0,0.45448182]
[1674001866632,0.01567087,21170.0,21169.0,0.44998882]
[1674001866634,0.01567087,21170.0,21169.0,1.39476482]
[1674001866888,0.01567087,21170.0,21169.0,1.93095482]
[1674001867423,0.01567087,21170.0,21169.0,2.40334282]
[1674001868205,0.01567087,21170.0,21169.0,2.16715282]
[1674001870767,0.01567087,21170.0,21169.0,2.16766102]
[1674001877911,0.00238191,21172.0,21169.0,2.16766102]
[1674001878225,0.00238191,21172.0,21170.0,0.3]
[1674001878494,0.00238191,21172.0,21170.0,0.944702]
[1674001879293,0.00238191,21172.0,21171.0,0.09083233]
[1674001879804,0.06138191,21172.0,21171.0,1.33552033]
[1674001879806,0.00238191,21172.0,21171.0,1.33552033]
[1674001880336,0.00238191,21172.0,21171.0,1.63099633]
[1674001880607,0.00838191,21172.0,21171.0,1.66299633]
[1674001880888,0.00838191,21172.0,21171.0,1.36752033]
[1674001881670,0.00838191,21172.0,21171.0,1.66299433]
[1674001882518,0.00838191,21172.0,21171.0,1.36752033]
[1674001883452,0.01108008,21174.0,21172.0,0.16150809]
[1674001883707,0.01108008,21174.0,21172.0,0.93381909]
[1674001884239,0.01108008,21174.0,21172.0,1.40614009]
[1674001884732,0.03608008,21174.0,21173.0,0.11576449]
[1674001885001,0.03608008,21174.0,21173.0,0.88806349]
[1674001885255,0.03608008,21174.0,21173.0,1.65580349]
[1674001886133,0.01108008,21174.0,21173.0,1.65580349]
[1674001886561,0.06408008,21174.0,21173.0,1.65980349]
[1674001888700,0.06408008,21174.0,21173.0,1.65971586]
[1674001889216,0.01108008,21174.0,21173.0,1.65571586]
[1674001889485,0.01508008,21174.0,21173.0,1.69871586]
[1674001892893,0.01508008,21174.0,21173.0,1.40327486]
[1674001894746,0.01508008,21174.0,21173.0,1.69871486]
[1674001895277,0.01508008,21174.0,21173.0,2.05689302]
[1674001895535,0.01508008,21174.0,21173.0,2.24562488]
[1674001895752,0.01508008,21174.0,21173.0,2.13259302]
[1674001896041,0.01508008,21174.0,21173.0,2.28259302]
[1674001896549,0.01508008,21174.0,21173.0,2.39562488]
[1674001896801,0.01508008,21174.0,21173.0,1.92441486]
[1674001897085,0.01133759,21178.0,21173.0,1.92441486]
[1674001897086,0.01133759,21178.0,21173.0,2.16691616]
[1674001897380,0.01133759,21178.0,21177.0,0.3113]
[1674001897624,0.01133759,21178.0,21177.0,2.76334691]
[1674001897931,0.01133759,21178.0,21177.0,2.40516875]
[1674001898175,0.01133759,21178.0,21177.0,2.09386875]
[1674001898988,0.01133759,21178.0,21177.0,2.18586875]
[1674001900044,0.01133759,21178.0,21177.0,1.8954953]
[1674001900833,0.01133759,21178.0,21177.0,1.89624974]
[1674001905387,0.01133759,21178.0,21177.0,1.89124519]
[1674001907302,0.01133759,21178.0,21177.0,2.25053343]
[1674001907565,0.01133759,21178.0,21177.0,2.48663343]
[1674001908101,0.01133759,21178.0,21177.0,2.39463343]
[1674001908350,0.01133759,21178.0,21177.0,2.12734519]
[1674001908875,0.01133759,21178.0,21177.0,3.13828855]
[1674001909134,0.01274179,21181.0,21178.0,0.15]
[1674001909396,0.01274179,21181.0,21178.0,2.50192821]
[1674001909705,0.01274179,21181.0,21178.0,2.35192821]
[1674001910419,0.01274179,21181.0,21178.0,2.46466321]
[1674001910695,0.01274179,21181.0,21178.0,2.60862666]
[1674001910935,0.01274179,21181.0,21178.0,2.63766904]
[1674001911203,0.01274179,21181.0,21178.0,2.52493404]
[1674001914552,0.20260927,21179.0,21178.0,1.56307335]
[1674001914802,0.01188332,21179.0,21178.0,1.23674411]
[1674001915066,0.20366478,21179.0,21178.0,1.15762087]
[1674001915325,0.20366478,21179.0,21178.0,1.035376]
[1674001915326,0.01293883,21179.0,21178.0,1.035376]
[1674001915594,0.16293883,21179.0,21178.0,1.035376]
[1674001915883,0.01188332,21179.0,21178.0,1.035376]
[1674001916134,0.01188332,21179.0,21178.0,0.944376]
[1674001916646,0.01288332,21179.0,21178.0,1.028376]
[1674001916905,0.01188332,21179.0,21178.0,0.944376]
[1674001917471,0.01188332,21179.0,21178.0,1.244376]
[1674001917680,0.01288332,21179.0,21178.0,1.329376]
[1674001918478,0.01188332,21179.0,21178.0,1.244376]
[1674001918780,0.01288332,21179.0,21178.0,1.328376]
[1674001918975,0.01188332,21179.0,21178.0,1.244376]
[1674001919261,0.01288332,21179.0,21178.0,1.328376]
[1674001919480,0.01188332,21179.0,21178.0,1.244376]
[1674001920568,0.01288332,21179.0,21178.0,1.244376]
[1674001920837,0.01288332,21179.0,21178.0,1.328376]
[1674001921058,0.01188332,21179.0,21178.0,1.244376]
[1674001921371,0.01188332,21179.0,21178.0,1.564456]
[1674001921614,0.01288332,21179.0,21178.0,1.028376]
[1674001921876,0.01388332,21179.0,21178.0,1.112376]
[1674001922129,0.01388332,21179.0,21178.0,0.944376]
[1674001922130,0.01188332,21179.0,21178.0,0.944376]
[1674001924276,0.01188332,21179.0,21178.0,1.244376]
[1674001924536,0.01188332,21179.0,21178.0,1.328376]
[1674001924537,0.01288332,21179.0,21178.0,1.328376]
[1674001924790,0.01288332,21179.0,21178.0,1.68766424]
[1674001925065,0.01288332,21179.0,21178.0,1.328376]
[1674001925517,0.01188332,21179.0,21178.0,1.244376]
[1674001925518,0.01288332,21179.0,21178.0,1.328376]
[1674001925770,0.01188332,21179.0,21178.0,1.244376]
[1674001926042,0.01288332,21179.0,21178.0,1.328376]
[1674001926323,0.01288332,21179.0,21178.0,0.944376]
[1674001926571,0.01393883,21179.0,21178.0,0.944376]
[1674001926837,0.01288332,21179.0,21178.0,0.944376]
[1674001927388,0.01388332,21179.0,21178.0,1.028376]
[1674001927653,0.01188332,21179.0,21178.0,1.180466]
[1674001927917,0.01288332,21179.0,21178.0,1.564466]
[1674001928176,0.01288332,21179.0,21178.0,1.56457725]
[1674001930323,0.01263332,21179.0,21178.0,1.63997725]
[1674001930842,0.01263332,21179.0,21178.0,2.26200049]
[1674001931370,0.00713582,21179.0,21178.0,2.26200049]
[1674001931950,0.00713582,21179.0,21178.0,2.07181474]
[1674001932207,4.38233832,21180.0,21178.0,2.82882384]
[1674001932489,4.38233832,21180.0,21179.0,1.18499165]
[1674001932754,4.38233832,21180.0,21179.0,2.12932165]
[1674001933036,4.38233832,21180.0,21179.0,2.98565408]
[1674001933367,4.07753832,21180.0,21179.0,3.07980122]
[1674001933629,3.19821233,21180.0,21179.0,2.79856042]
[1674001933887,1.59966824,21180.0,21179.0,2.59222293]
[1674001934145,0.37841324,21180.0,21179.0,2.68522293]
[1674001934412,0.01253728,21182.0,21179.0,2.59222293]
[1674001934692,0.01253728,21182.0,21181.0,0.70535791]
[1674001934950,0.01253728,21182.0,21181.0,4.0327538]
[1674001935209,0.01253728,21182.0,21181.0,3.92045011]
[1674001935471,0.01253728,21182.0,21181.0,3.88892286]
[1674001935730,0.01253728,21182.0,21181.0,3.75856284]
[1674001936000,0.01253728,21182.0,21181.0,3.92722548]
[1674001936277,0.01253728,21182.0,21181.0,3.75928501]
[1674001936557,0.01253728,21182.0,21181.0,3.92788142]
[1674001936809,0.01253728,21182.0,21181.0,4.01988142]
[1674001937884,0.01274179,21183.0,21181.0,3.92718501]
[1674001938144,0.01274179,21183.0,21182.0,2.02034903]
[1674001938416,0.01274179,21183.0,21182.0,2.85210647]
[1674001939483,0.01400742,21188.0,21182.0,2.964549]
[1674001939755,0.01400742,21188.0,21186.0,0.0758]
[1674001940253,0.01400742,21188.0,21186.0,2.64020548]
[1674001940255,0.01400742,21188.0,21186.0,2.26397774]
[1674001941068,0.01400742,21188.0,21186.0,2.64020548]
[1674001941370,0.01400742,21188.0,21186.0,3.41630717]
[1674001941908,0.01400742,21188.0,21186.0,3.4546835]
[1674001942169,0.01400742,21188.0,21186.0,3.80290359]
[1674001942433,0.01400742,21188.0,21186.0,3.03689633]
[1674001942687,0.01400742,21188.0,21186.0,2.56766859]
[1674001942953,0.01400742,21188.0,21186.0,2.65966859]
[1674001943212,0.01400742,21188.0,21186.0,2.56766859]
[1674001943486,0.01400742,21188.0,21186.0,2.53429783]
[1674001943746,0.01400742,21188.0,21186.0,2.11596859]
[1674001944013,0.01400742,21188.0,21186.0,2.20796859]
[1674001944543,0.01400742,21188.0,21186.0,2.11596859]
[1674001944832,0.01400742,21188.0,21186.0,2.41596859]
[1674001945889,0.01400742,21188.0,21186.0,2.50896859]
[1674001946407,0.01400742,21188.0,21186.0,2.58446859]
[1674001948020,0.01400742,21188.0,21186.0,2.96069633]
[1674001948243,0.01400742,21188.0,21186.0,2.58446859]
[1674001948494,0.01400742,21188.0,21186.0,2.96069633]
[1674001948756,0.01400742,21188.0,21186.0,3.03659633]
[1674001949595,0.01400742,21188.0,21187.0,0.08703996]
[1674001949855,0.01400742,21188.0,21187.0,0.46293996]
[1674001950116,0.01400742,21188.0,21187.0,1.40691396]
[1674001951199,0.01400742,21188.0,21187.0,1.49991396]
[1674001952054,0.01400742,21188.0,21187.0,2.0261417]
[1674001952326,0.01400742,21188.0,21187.0,1.87609751]
[1674001952576,0.01400742,21188.0,21187.0,1.78309751]
[1674001952839,0.01400742,21188.0,21187.0,2.3532992]
[1674001953115,0.01400742,21188.0,21187.0,2.3361992]
[1674001953396,0.01400742,21188.0,21187.0,2.3286566]
[1674001953663,0.01226475,21188.0,21187.0,2.49515585]
[1674001953921,0.01226475,21188.0,21187.0,2.58715585]
[1674001954191,0.01226475,21188.0,21187.0,3.00306217]
[1674001954471,0.01226475,21188.0,21187.0,2.84463293]
[1674001954783,0.01226475,21188.0,21187.0,2.75263293]
[1674001955300,0.01400742,21189.0,21187.0,2.87897892]
[1674001955558,0.02965591,21199.0,21189.0,0.00768625]
[1674001955846,0.36394019,21198.0,21197.0,0.23588]
[1674001956169,0.02965591,21199.0,21197.0,1.715292]
[1674001956417,0.03071142,21199.0,21197.0,1.715292]
[1674001956690,0.02965591,21199.0,21197.0,1.243528]
[1674001957227,0.02965591,21199.0,21197.0,1.036528]
[1674001957228,0.36687142,21198.0,21197.0,1.036528]
[1674001957479,0.02965591,21199.0,21197.0,0.564764]
[1674001957736,0.22038186,21199.0,21197.0,0.093]
[1674001958026,0.62264,21198.0,21197.0,0.093]
[1674001958285,0.62264,21198.0,21197.0,0.393]
[1674001958286,0.47264,21198.0,21197.0,0.393]
[1674001958554,0.32124,21198.0,21197.0,1.336528]
[1674001958838,0.02965591,21199.0,21197.0,1.336528]
[1674001959376,0.02965591,21199.0,21198.0,0.30055798]
[1674001959628,0.02965591,21199.0,21198.0,1.24404198]
[1674001960941,0.02965591,21199.0,21198.0,1.80878398]
[1674001962996,0.02965591,21199.0,21198.0,1.50878398]
[1674001963253,0.10601142,21199.0,21198.0,1.036484]
[1674001963508,0.42725142,21199.0,21198.0,1.036484]
[1674001964068,0.42619591,21199.0,21198.0,1.036484]
[1674001964593,0.02965591,21199.0,21198.0,1.336484]
[1674001964851,0.02965591,21199.0,21198.0,1.93741225]
[1674001965120,0.29855591,21203.0,21198.0,1.78741225]
[1674001965430,0.60258441,21205.0,21201.0,1.0]
[1674001965431,0.00330114,21205.0,21201.0,1.0]
[1674001965697,0.00330114,21205.0,21204.0,0.23578]
[1674001965964,0.00330114,21205.0,21204.0,1.714827]
[1674001966224,0.00330114,21205.0,21204.0,1.83916957]
[1674001967344,0.00330114,21205.0,21204.0,1.93216957]
[1674001967596,0.00330114,21205.0,21204.0,1.83916957]
[1674001967875,0.00330114,21205.0,21204.0,2.03216957]
[1674001968666,0.00330114,21205.0,21204.0,1.907827]
[1674001968932,0.00330114,21205.0,21204.0,2.26842229]
[1674001969443,0.00330114,21205.0,21204.0,2.99491525]
[1674001969484,0.01745732,21208.0,21205.0,0.24999986]
[1674001969637,0.01745732,21208.0,21206.0,1.78878856]
[1674001969854,0.01745732,21208.0,21206.0,1.714692]
[1674001970292,0.01745732,21208.0,21207.0,0.00010221]
[1674001970526,0.01745732,21208.0,21207.0,0.47164421]
[1674001970761,0.01745732,21208.0,21207.0,0.77164421]
[1674001970981,0.01745732,21208.0,21207.0,0.471542]
[1674001971221,0.01745732,21208.0,21207.0,0.94318621]
[1674001972082,0.01745732,21208.0,21207.0,0.943084]
[1674001972263,0.01745732,21208.0,21207.0,1.243084]
[1674001972523,0.01745732,21208.0,21207.0,1.33618621]
[1674001972789,0.01745732,21208.0,21207.0,1.036084]
[1674001973060,0.09371283,21208.0,21207.0,0.564542]
[1674001973323,0.41495283,21208.0,21207.0,0.093]
[1674001973588,0.41495283,21208.0,21207.0,0.56486208]
[1674001973589,0.33869732,21208.0,21207.0,0.56486208]
[1674001973841,0.33869732,21208.0,21207.0,0.471542]
[1674001974095,0.33969732,21208.0,21207.0,0.556542]
[1674001974353,0.33969732,21208.0,21206.0,0.471543]
[1674001974354,0.41559732,21208.0,21206.0,0.471543]
[1674001974616,0.41559732,21208.0,21205.0,0.57156486]
[1674001974617,0.39644,21207.0,21205.0,0.57156486]
[1674001974861,0.39714,21206.0,21205.0,0.09999986]
[1674001975118,0.39714,21206.0,21205.0,1.15728916]
[1674001975119,0.32124,21206.0,21205.0,1.15728916]
[1674001975374,0.09315732,21208.0,21205.0,1.15728916]
[1674001975647,0.09315732,21208.0,21207.0,0.086]
[1674001975648,0.09415732,21208.0,21207.0,0.086]
[1674001975901,0.09315732,21208.0,21207.0,0.943084]
[1674001976152,0.41439732,21208.0,21207.0,0.943084]
[1674001976396,0.41439732,21208.0,21207.0,1.243084]
[1674001976929,0.41439732,21208.0,21207.0,0.943084]
[1674001977227,0.41439732,21208.0,21207.0,1.24931787]
[1674001977228,0.42139732,21208.0,21207.0,1.24931787]
[1674001977427,0.10015732,21208.0,21207.0,1.249084]
[1674001977677,0.10015732,21208.0,21207.0,0.949084]
[1674001977931,0.42139732,21208.0,21207.0,0.006]
[1674001978521,0.34569732,21208.0,21207.0,0.949084]
[1674001978773,0.02445732,21208.0,21207.0,0.949084]
[1674001979286,0.02551283,21208.0,21207.0,0.949084]
[1674001979551,0.02445732,21208.0,21207.0,0.949084]
[1674001980056,0.02445732,21208.0,21207.0,1.249084]
[1674001980829,0.02445732,21208.0,21207.0,0.949084]
[1674001981325,0.34569732,21208.0,21207.0,0.949084]
[1674001981573,0.34569732,21208.0,21207.0,1.249084]
[1674001981828,0.10035732,21208.0,21207.0,1.249084]
[1674001982085,0.10035732,21208.0,21207.0,0.006]
[1674001982378,0.42159732,21208.0,21207.0,0.006]
[1674001983868,0.42265283,21208.0,21207.0,0.006]
[1674001984672,0.42265283,21208.0,21207.0,1.249084]
[1674001984673,0.42159732,21208.0,21207.0,1.249084]
[1674001985126,0.02445732,21208.0,21207.0,1.249084]
[1674001985639,0.02445732,21208.0,21207.0,1.34409714]
[1674001985903,0.02445732,21208.0,21207.0,1.7181937]
[1674001986152,0.02445732,21208.0,21207.0,2.1897357]
[1674001986420,0.02445732,21208.0,21207.0,2.88329425]
[1674001986936,0.01745732,21208.0,21207.0,2.87729425]
[1674001987278,0.01845732,21208.0,21207.0,2.96329425]
[1674001987526,0.01888057,21214.0,21208.0,0.15174573]
[1674001987774,0.01888057,21214.0,21210.0,0.0759]
[1674001988020,0.01888057,21214.0,21211.0,1.78844356]
[1674001988290,0.01888057,21214.0,21212.0,0.3003157]
[1674001988584,0.01888057,21214.0,21213.0,1.414227]
[1674001988815,0.01888057,21214.0,21213.0,1.714227]
[1674001989611,0.01888057,21214.0,21213.0,1.82632331]
[1674001989878,0.01888057,21214.0,21213.0,2.28741987]
[1674001990664,0.01888057,21214.0,21213.0,2.36301987]
[1674001990919,0.01888057,21214.0,21213.0,2.25092356]
[1674001991214,0.01888057,21214.0,21213.0,2.72812525]
[1674001991544,0.01888057,21214.0,21213.0,2.80402525]
[1674001992326,0.01888057,21214.0,21213.0,2.45309015]
[1674001992583,0.01888057,21214.0,21213.0,1.62749359]
[1674001993046,0.01888057,21214.0,21213.0,1.54049359]
[1674001993049,0.01888057,21214.0,21213.0,1.63249359]
[1674001993305,0.01888057,21214.0,21213.0,1.54049359]